bitfinex-derivatives/quotes_BTCF0:USTF0_20241203
["timestamp","ask_amount","ask_price","bid_price","bid_amount"]
[1733261808503,0.084055,95988.0,95987.0,4e-05]
[1733261809304,0.097055,95988.0,95987.0,0.00104]
[1733261809507,0.052061,95978.0,95977.0,0.0026]
[1733261809700,0.052061,95978.0,95977.0,0.052061]
[1733261810910,0.054061,95978.0,95977.0,0.052061]
[1733261811112,0.055061,95978.0,95977.0,0.052061]
[1733261812208,0.052064,95973.0,95972.0,0.412863]
[1733261812415,0.052064,95973.0,95972.0,0.052063]
[1733261813016,0.003,95978.0,95970.0,0.3608]
[1733261813309,0.052065,95971.0,95970.0,0.3608]
[1733261814708,0.052068,95964.0,95962.0,0.0026]
[1733261814914,0.052068,95964.0,95963.0,8.747e-05]
[1733261815114,0.002,95971.0,95970.0,0.052065]
[1733261815803,0.052063,95975.0,95974.0,0.052063]
[1733261816207,0.052063,95975.0,95974.0,0.052103]
[1733261816903,0.082362,95979.0,95978.0,0.052061]
[1733261817417,0.082362,95979.0,95978.0,0.052101]
[1733261817908,0.088362,95979.0,95978.0,0.052101]
[1733261818117,0.091362,95979.0,95978.0,0.052101]
[1733261818413,0.085362,95979.0,95978.0,0.052101]
[1733261818613,0.12413601,95983.0,95978.0,0.052101]
[1733261818917,0.12420666,95997.0,95989.0,0.052055]
[1733261819112,0.1,96000.0,95989.0,0.412855]
[1733261819317,0.1,96000.0,95989.0,0.412895]
[1733261820010,0.1,96000.0,95989.0,0.51707306]
[1733261820214,0.1,96000.0,95999.0,0.052049]
[1733261820509,0.1,96000.0,95999.0,0.561449]
[1733261821307,0.0026,96015.0,96014.0,0.052041]
[1733261821510,8.464e-05,96018.0,96017.0,0.05204]
[1733261821813,8.464e-05,96018.0,96017.0,0.05208]
[1733261822413,8.464e-05,96018.0,96017.0,0.1562472]
[1733261823421,8.464e-05,96018.0,96017.0,0.18670192]
[1733261823607,0.0026,96030.0,96017.0,0.43466192]
[1733261823917,0.12131034,96060.0,96033.0,0.052031]
[1733261823918,0.0026,96034.0,96033.0,0.052031]
[1733261824117,0.0026,96034.0,96029.0,0.36084]
[1733261824118,0.054625,96044.0,96042.0,0.052026]
[1733261824421,0.052025,96044.0,96043.0,4e-05]
[1733261828014,0.053025,96044.0,96043.0,4e-05]
[1733261829712,0.052025,96044.0,96043.0,4e-05]
[1733261830905,0.0303,96048.0,96043.0,4e-05]
[1733261830906,9.794e-05,96049.0,96043.0,4e-05]
[1733261831120,9.794e-05,96049.0,96048.0,0.3608]
[1733261831416,9.794e-05,96049.0,96048.0,0.36084]
[1733261833017,0.05211994,96049.0,96048.0,0.31084]
[1733261833418,0.05211994,96049.0,96048.0,0.31184]
[1733261833419,9.794e-05,96049.0,96048.0,0.31184]
[1733261833612,9.794e-05,96049.0,96048.0,0.363863]
[1733261833812,9.794e-05,96049.0,96048.0,0.724663]
[1733261834012,0.3608,96091.0,96067.0,0.052012]
[1733261834214,0.05201,96073.0,96071.0,0.3608]
[1733261834614,0.0321,96086.0,96067.0,0.052012]
[1733261834820,0.052011,96070.0,96067.0,0.052012]
[1733261835017,0.052011,96070.0,96068.0,0.0001172]
[1733261835913,0.052015,96062.0,96061.0,0.3608]
[1733261836822,0.052015,96062.0,96061.0,0.41293502]
[1733261837125,0.052015,96062.0,96061.0,0.36091902]
[1733261837426,0.052015,96062.0,96061.0,0.36291902]
[1733261837612,0.052015,96062.0,96061.0,0.36391902]
[1733261838724,0.052015,96062.0,96061.0,0.31401902]
[1733261838918,0.052022,96049.0,96043.0,0.062426]
[1733261839221,0.052022,96049.0,96048.0,0.02081969]
[1733261839819,0.052022,96049.0,96048.0,0.0209536]
[1733261840426,0.052022,96049.0,96048.0,0.0249536]
[1733261840818,0.412822,96049.0,96048.0,0.0329536]
[1733261841014,0.052022,96049.0,96048.0,0.01213391]
[1733261841314,0.052028,96039.0,96038.0,0.3608]
[1733261842127,0.052028,96039.0,96038.0,0.36093323]
[1733261842828,0.053028,96039.0,96038.0,0.36693323]
[1733261843020,0.053028,96039.0,96038.0,0.00613323]
[1733261843420,0.054028,96039.0,96038.0,0.01513323]
[1733261844017,0.053028,96039.0,96038.0,0.00013323]
[1733261844417,0.083128,96039.0,96038.0,0.00013323]
[1733261844621,0.082128,96039.0,96038.0,0.00013323]
[1733261845831,0.083128,96039.0,96029.0,0.02082008]
[1733261846029,0.052033,96030.0,96029.0,0.02082008]
[1733261847129,0.052033,96030.0,96029.0,0.02094926]
[1733261847326,0.055033,96030.0,96029.0,0.02094926]
[1733261847523,0.056033,96030.0,96029.0,0.00012918]
[1733261847724,0.053033,96030.0,96029.0,0.00012918]
[1733261847925,0.054033,96030.0,96029.0,0.00012918]
[1733261848426,0.054033,96030.0,96020.0,0.15803347]
[1733261848427,0.3881,96029.0,96020.0,0.15803347]
[1733261848623,0.3881,96029.0,96007.0,0.0104]
[1733261848624,0.052045,96008.0,96007.0,0.0104]
[1733261848825,0.052051,95997.0,95996.0,0.052051]
[1733261849131,0.3608,96005.0,95988.0,0.24618299]
[1733261849331,0.052051,95996.0,95994.0,0.020823]
[1733261849524,0.052051,95996.0,95995.0,0.0026917]
[1733261850619,0.052051,95996.0,95995.0,0.0036917]
[1733261851026,0.052051,95996.0,95995.0,0.0026917]
[1733261851229,0.052051,95996.0,95995.0,0.0046917]
[1733261851730,0.052051,95996.0,95995.0,0.0026917]
[1733261851935,0.052051,95996.0,95995.0,0.0547437]
[1733261852233,0.052051,95996.0,95995.0,0.0046917]
[1733261853030,0.052051,95996.0,95995.0,0.0036917]
[1733261854335,0.052051,95996.0,95974.0,0.0104]
[1733261854632,0.052051,95996.0,95973.0,0.0104]
[1733261854633,0.052063,95974.0,95973.0,0.0104]
[1733261854833,0.052066,95969.0,95968.0,0.03096951]
[1733261855226,0.052066,95969.0,95968.0,0.03105125]
[1733261856027,0.052066,95969.0,95968.0,0.05188154]
[1733261856227,0.052066,95969.0,95968.0,0.05388154]
[1733261857026,0.052066,95969.0,95968.0,0.05588154]
[1733261857232,0.052066,95969.0,95968.0,0.00564477]
[1733261857430,0.052066,95969.0,95968.0,0.00364477]
[1733261857738,0.052066,95969.0,95968.0,0.00564477]
[1733261859340,0.053066,95969.0,95968.0,0.00364477]
[1733261860038,0.053066,95969.0,95968.0,0.00164477]
[1733261860227,0.056066,95969.0,95968.0,0.00164477]
[1733261860739,0.055066,95969.0,95968.0,0.00164477]
[1733261861443,0.054066,95969.0,95968.0,0.00164477]
[1733261861639,0.003,95969.0,95968.0,0.05371077]
[1733261861830,0.052061,95978.0,95977.0,0.05206]
[1733261862229,0.052063,95974.0,95973.0,0.412863]
[1733261863640,0.052061,95979.0,95978.0,0.052061]
[1733261863941,0.052061,95979.0,95978.0,0.052101]
[1733261864638,0.052059,95982.0,95981.0,0.052059]
[1733261864937,0.052059,95982.0,95981.0,0.052099]
[1733261866446,0.052059,95982.0,95981.0,0.00104]
[1733261868543,0.052059,95982.0,95981.0,4e-05]
[1733261869443,0.052059,95982.0,95981.0,0.00104]
[1733261869945,0.052059,95982.0,95981.0,0.00204]
[1733261870447,0.052059,95982.0,95981.0,0.00104]
[1733261872954,0.052059,95982.0,95981.0,4e-05]
[1733261873554,0.052059,95982.0,95981.0,0.052099]
[1733261875240,0.052059,95982.0,95981.0,4e-05]
[1733261876041,0.052059,95982.0,95981.0,0.052099]
[1733261877249,0.053059,95982.0,95981.0,0.052099]
[1733261877753,0.053059,95982.0,95981.0,0.412899]
[1733261879156,0.052059,95982.0,95981.0,0.412899]
[1733261881056,0.052059,95982.0,95981.0,0.36084]
[1733261882453,0.052059,95982.0,95981.0,0.412899]
[1733261885264,0.052059,95982.0,95981.0,0.36084]
[1733261886662,0.052059,95982.0,95981.0,0.412899]
[1733261887055,0.052059,95982.0,95981.0,0.36084]
[1733261887251,0.20626502,95982.0,95981.0,4e-05]
[1733261887455,0.052059,95982.0,95981.0,4e-05]
[1733261887652,0.1026994,95982.0,95981.0,4e-05]
[1733261888556,0.1046994,95982.0,95981.0,4e-05]
[1733261889449,0.1086994,95982.0,95981.0,4e-05]
[1733261889948,0.1116994,95982.0,95981.0,0.00104]
[1733261890151,0.297979,95982.0,95981.0,0.00104]
[1733261890351,0.1116994,95982.0,95981.0,0.00104]
[1733261890559,0.1096994,95982.0,95981.0,0.00104]
[1733261890754,0.1126994,95982.0,95981.0,0.00104]
[1733261891655,0.062059,95982.0,95981.0,0.00104]
[1733261891963,0.22701956,95982.0,95981.0,0.00104]
[1733261892262,0.1126994,95982.0,95981.0,0.00104]
[1733261892850,0.062059,95982.0,95981.0,0.00104]
[1733261893158,0.1764742,95982.0,95981.0,0.00104]
[1733261893365,0.2271146,95982.0,95981.0,0.00104]
[1733261893769,0.1126994,95982.0,95981.0,0.00104]
[1733261894259,0.062059,95982.0,95981.0,0.00104]
[1733261894452,0.22719013,95982.0,95981.0,0.00104]
[1733261894957,0.22717817,95982.0,95981.0,0.00104]
[1733261895358,0.22729832,95982.0,95981.0,0.00104]
[1733261896960,0.22658751,95982.0,95981.0,1e-06]
[1733261897261,0.2793852,95982.0,95981.0,1e-06]
[1733261897569,0.22658751,95982.0,95981.0,1e-06]
[1733261897753,0.35880993,95982.0,95981.0,1e-06]
[1733261898154,0.60718273,95982.0,95981.0,1e-06]
[1733261898462,0.35880993,95982.0,95981.0,1e-06]
[1733261898663,0.42544064,95982.0,95981.0,1e-06]
[1733261898863,0.35880993,95982.0,95981.0,1e-06]
[1733261899763,0.28032232,95982.0,95981.0,1e-06]
[1733261899965,0.38133076,95982.0,95981.0,1e-06]
[1733261900854,0.38138804,95982.0,95981.0,1e-06]
[1733261901168,0.38138804,95982.0,95981.0,0.05206]
[1733261901169,0.22670804,95982.0,95981.0,0.05206]
[1733261901367,0.11070471,95982.0,95981.0,0.05206]
[1733261901559,0.10670471,95982.0,95981.0,0.052059]
[1733261902067,0.10370471,95982.0,95981.0,0.052059]
[1733261902265,0.10670471,95982.0,95981.0,0.052059]
[1733261903262,0.10470471,95982.0,95981.0,0.052059]
[1733261903768,0.10370471,95982.0,95981.0,0.08326432]
[1733261904368,0.00164571,95982.0,95981.0,0.08326432]
[1733261904669,0.1870419,95985.0,95981.0,0.08326432]
[1733261904670,0.0026,95992.0,95981.0,0.13539206]
[1733261904861,0.1246621,95982.0,95981.0,0.18745106]
[1733261905061,0.0026,95995.0,95981.0,0.49619206]
[1733261905363,0.052052,95995.0,95994.0,0.412852]
[1733261907071,0.055052,95995.0,95994.0,0.412852]
[1733261907571,0.063382,95995.0,95994.0,0.412852]
[1733261907866,0.069382,95995.0,95994.0,0.053052]
[1733261909272,0.069382,95995.0,95994.0,0.08345323]
[1733261910759,0.01733,95995.0,95994.0,0.08345323]
[1733261914267,0.01733,95995.0,95994.0,0.18762586]
[1733261914468,0.1929637,95996.0,95995.0,0.052052]
[1733261914669,0.09966109,95996.0,95995.0,0.206692]
[1733261914872,0.09966109,95996.0,95995.0,0.206732]
[1733261915079,0.09966109,95996.0,95995.0,0.31090354]
[1733261916068,0.10799109,95996.0,95995.0,0.31090354]
[1733261916274,0.10799109,95996.0,95995.0,0.31190354]
[1733261917879,0.10799109,95996.0,95995.0,0.15626354]
[1733261918075,0.10799109,95996.0,95995.0,0.31190354]
[1733261919169,0.10799109,95996.0,95995.0,0.31290354]
[1733261919679,0.2012937,95996.0,95995.0,0.31290354]
[1733261919979,0.2012937,95996.0,95995.0,0.15826354]
[1733261920174,0.10799109,95996.0,95995.0,0.15826354]
[1733261921671,0.10799109,95996.0,95995.0,0.15726354]
[1733261921983,0.10799109,95996.0,95995.0,0.15626354]
[1733261922172,0.10799109,95996.0,95995.0,0.15726354]
[1733261922773,0.10799109,95996.0,95995.0,0.15626354]
[1733261922974,0.10799109,95996.0,95995.0,0.15726354]
[1733261923374,0.08672,95996.0,95995.0,0.15726354]
[1733261928291,0.18002261,95996.0,95995.0,0.15726354]
[1733261928482,0.08672,95996.0,95995.0,0.15726354]
[1733261928682,0.08672,95996.0,95995.0,0.15626354]
[1733261928879,0.08672,95996.0,95995.0,0.15726354]
[1733261929478,0.08672,95996.0,95995.0,0.15626354]
[1733261929684,0.08672,95996.0,95995.0,0.15726354]
[1733261931991,0.08672,95996.0,95995.0,0.16026354]
[1733261932292,0.08672,95996.0,95995.0,0.16326354]
[1733261932807,0.138771,95996.0,95995.0,0.056092]
[1733261933094,0.138771,95996.0,95995.0,0.059092]
[1733261933489,0.22159499,95996.0,95995.0,0.059092]
[1733261934089,0.22159499,95996.0,95995.0,0.00704]
[1733261934291,0.16954399,95996.0,95995.0,0.00704]
[1733261934487,0.22159499,95996.0,95995.0,0.00704]
[1733261934686,0.22159499,95996.0,95995.0,0.00304]
[1733261934993,0.22159499,95996.0,95995.0,0.00704]
[1733261935388,0.170971,95996.0,95995.0,0.00504]
[1733261935691,0.22159626,95996.0,95995.0,0.00504]
[1733261935895,0.25179632,95996.0,95995.0,0.00104]
[1733261936095,0.25179632,95996.0,95995.0,0.00304]
[1733261936393,0.052052,95995.0,95994.0,0.05123123]
[1733261936583,0.10267732,95995.0,95994.0,0.02083]
[1733261937191,0.10268105,95995.0,95994.0,0.02083]
[1733261938297,0.18939105,95995.0,95994.0,0.02083]
[1733261939292,0.19039105,95995.0,95994.0,0.02083]
[1733261940589,0.052054,95990.0,95989.0,0.39117971]
[1733261940797,0.10268305,95990.0,95989.0,0.03037971]
[1733261941096,0.10268305,95990.0,95982.0,0.0026]
[1733261941097,0.052058,95983.0,95982.0,0.0026]
[1733261941286,0.052059,95982.0,95981.0,0.02083432]
[1733261942894,0.052059,95982.0,95981.0,0.02483432]
[1733261943094,0.052059,95982.0,95981.0,0.03083432]
[1733261943493,0.052059,95982.0,95981.0,0.02683432]
[1733261943888,0.10269531,95982.0,95981.0,0.02683432]
[1733261944388,0.052059,95982.0,95981.0,0.02483432]
[1733261944787,0.10269626,95982.0,95981.0,0.02483432]
[1733261945288,0.052059,95982.0,95981.0,0.02183432]
[1733261945489,0.052059,95982.0,95981.0,0.02283432]
[1733261945792,0.10269639,95982.0,95981.0,0.02283432]
[1733261946092,0.052059,95982.0,95981.0,0.02283432]
[1733261946299,0.2078737,95982.0,95981.0,0.02283432]
[1733261946495,0.052059,95982.0,95981.0,0.02283432]
[1733261947289,0.56864885,95982.0,95981.0,0.02283432]
[1733261947797,0.20785576,95982.0,95981.0,0.02283432]
[1733261947989,0.052059,95982.0,95981.0,0.02283432]
[1733261948590,0.46349756,95982.0,95981.0,0.02283432]
[1733261949185,0.412859,95982.0,95981.0,0.02283432]
[1733261950496,0.46349801,95982.0,95981.0,0.02283432]
[1733261953604,0.48475801,95982.0,95981.0,0.02283432]
[1733261953990,0.54713801,95982.0,95981.0,0.02283432]
[1733261954396,0.496499,95982.0,95981.0,0.02283432]
[1733261954702,0.496499,95982.0,95981.0,0.002]
[1733261954896,0.052066,95969.0,95965.0,0.02083432]
[1733261955104,0.412866,95969.0,95965.0,0.02083432]
[1733261956096,0.421196,95969.0,95968.0,0.03638039]
[1733261956292,0.00833,95969.0,95968.0,0.08844639]
[1733261956694,0.060396,95969.0,95968.0,0.08844639]
[1733261957213,0.060396,95969.0,95968.0,0.04038039]
[1733261961101,0.068076,95969.0,95968.0,0.04038039]
[1733261964011,0.076406,95969.0,95968.0,0.04038039]
[1733261964503,0.23211396,95969.0,95968.0,0.04038039]
[1733261964705,0.076406,95969.0,95968.0,0.04038039]
[1733261964900,0.076406,95969.0,95968.0,0.01108174]
[1733261965999,0.26325556,95969.0,95968.0,0.01108174]
[1733261966311,0.076406,95969.0,95968.0,0.01108174]
[1733261967004,0.18085801,95969.0,95968.0,0.01108174]
[1733261967906,0.05207,95962.0,95953.0,0.052074]
[1733261968704,0.05207,95962.0,95961.0,0.00167992]
[1733261969301,0.05207,95962.0,95961.0,0.01067992]
[1733261969499,0.05207,95962.0,95961.0,0.01667992]
[1733261969500,0.05307,95962.0,95961.0,0.01667992]
[1733261970512,0.05307,95962.0,95961.0,0.04656083]
[1733261970805,0.05307,95962.0,95961.0,0.01667992]
[1733261971006,0.27181573,95962.0,95961.0,0.01667992]
[1733261971215,0.08477,95962.0,95961.0,0.01667992]
[1733261971398,0.27181573,95962.0,95961.0,0.01667992]
[1733261972201,0.08477,95962.0,95961.0,0.00767992]
[1733261972412,0.08477,95962.0,95961.0,0.00967992]
[1733261972710,0.08577,95962.0,95961.0,0.01311685]
[1733261973113,0.052076,95950.0,95949.0,0.05136436]
[1733261973311,0.052076,95950.0,95949.0,0.02083432]
[1733261974114,0.412876,95950.0,95949.0,0.02892225]
[1733261974304,0.053076,95950.0,95949.0,0.02892225]
[1733261974716,0.054076,95950.0,95949.0,0.03792225]
[1733261975016,0.054076,95950.0,95949.0,0.08999925]
[1733261975606,0.053076,95950.0,95949.0,0.08199925]
[1733261975810,0.054076,95950.0,95949.0,0.08499925]
[1733261976417,0.002,95950.0,95949.0,0.08499925]
[1733261976614,0.002,95950.0,95949.0,0.14555994]
[1733261979818,0.01033,95950.0,95949.0,0.14555994]
[1733261980322,0.062406,95950.0,95949.0,0.14555994]
[1733261980710,0.124816,95950.0,95949.0,0.14555994]
[1733261981116,0.124816,95950.0,95949.0,0.11515994]
[1733261981815,0.133146,95950.0,95949.0,0.06308294]
[1733261982619,0.25780439,95950.0,95949.0,0.06308294]
[1733261984414,0.133146,95950.0,95949.0,0.06308294]
[1733261984728,0.140836,95950.0,95949.0,0.11515994]
[1733261985130,0.162176,95950.0,95949.0,0.11515994]
[1733261986732,0.1101,95950.0,95949.0,0.21938143]
[1733261986932,0.0026,95955.0,95949.0,0.21938143]
[1733261986933,0.00256,95955.0,95954.0,0.052074]
[1733261987126,0.15587162,95956.0,95954.0,0.052074]
[1733261987127,0.10587162,95956.0,95955.0,0.052073]
[1733261987624,0.00729,95963.0,95955.0,0.10422149]
[1733261987823,0.00729,95963.0,95962.0,0.41287]
[1733261988023,0.00729,95963.0,95962.0,0.41291]
[1733261988623,0.067689,95963.0,95962.0,0.36084]
[1733261988826,0.067689,95963.0,95962.0,0.36484]
[1733261989234,0.067689,95963.0,95962.0,0.36684]
[1733261989439,0.067689,95963.0,95962.0,0.36284]
[1733261989627,0.067689,95963.0,95962.0,0.36584]
[1733261989822,0.067689,95963.0,95962.0,0.44727157]
[1733261991530,0.067689,95963.0,95962.0,0.44427157]
[1733261991729,0.01562,95963.0,95962.0,0.44527157]
[1733261995140,0.067689,95963.0,95962.0,0.44527157]
[1733261995538,0.060399,95963.0,95962.0,0.44527157]
[1733261996348,0.060399,95963.0,95962.0,0.39320157]
[1733261996545,0.093299,95963.0,95962.0,0.39320157]
[1733261996744,0.093299,95963.0,95962.0,0.41403885]
[1733261999348,0.093299,95963.0,95962.0,0.46610885]
[1733262000252,0.093299,95963.0,95962.0,0.05323885]
[1733262000456,0.454099,95963.0,95962.0,0.00304]
[1733262001158,0.454099,95963.0,95962.0,0.03262327]
[1733262001745,0.454099,95963.0,95962.0,0.00304]
[1733262002763,0.55694659,95963.0,95962.0,0.00304]
[1733262004161,0.454099,95963.0,95962.0,0.00304]
[1733262004662,0.05207,95961.0,95960.0,0.02083844]
[1733262005057,0.23923114,95961.0,95960.0,0.02083844]
[1733262005364,0.05207,95961.0,95960.0,0.02083844]
[1733262005856,0.05207,95961.0,95960.0,0.02483844]
[1733262006357,0.05207,95961.0,95960.0,0.004]
[1733262006558,0.0604,95961.0,95960.0,0.004]
[1733262006954,0.24756114,95961.0,95960.0,0.004]
[1733262007158,0.0604,95961.0,95960.0,0.004]
[1733262008164,0.24756114,95961.0,95960.0,0.004]
[1733262008357,0.0604,95961.0,95960.0,0.004]
[1733262008663,0.24756114,95961.0,95960.0,0.004]
[1733262008855,0.0604,95961.0,95960.0,0.004]
[1733262009762,0.0928,95961.0,95960.0,0.004]
[1733262011060,0.27992176,95961.0,95960.0,0.004]
[1733262011461,0.0928,95961.0,95960.0,0.004]
[1733262011664,0.0928,95961.0,95954.0,4e-05]
[1733262011963,0.59999782,95955.0,95954.0,4e-05]
[1733262012155,0.555633,95955.0,95954.0,4e-05]
[1733262013568,0.052076,95950.0,95949.0,8.793e-05]
[1733262014166,0.23915383,95950.0,95949.0,9.3e-07]
[1733262014465,0.052076,95950.0,95949.0,9.3e-07]
[1733262014665,0.052076,95950.0,95949.0,0.00100093]
[1733262014868,0.052081,95940.0,95939.0,0.0026]
[1733262015067,0.052085,95934.0,95933.0,0.02083432]
[1733262015673,0.17674629,95934.0,95933.0,0.02083432]
[1733262015867,0.052085,95934.0,95933.0,0.02092331]
[1733262016467,0.17672084,95934.0,95933.0,0.02092331]
[1733262017268,0.17672084,95934.0,95933.0,0.38272331]
[1733262017465,0.052085,95934.0,95933.0,0.43480331]
[1733262017669,0.052085,95934.0,95933.0,0.43580331]
[1733262017867,0.052085,95934.0,95933.0,0.43480331]
[1733262018262,0.053085,95934.0,95933.0,0.43380331]
[1733262018464,0.053085,95934.0,95933.0,0.38172331]
[1733262018863,0.052085,95934.0,95933.0,0.38272331]
[1733262019363,0.18505084,95934.0,95933.0,0.38272331]
[1733262019675,0.18505084,95934.0,95933.0,0.38372331]
[1733262019867,0.060415,95934.0,95933.0,0.38372331]
[1733262020169,0.060415,95934.0,95933.0,0.38272331]
[1733262020364,0.18502159,95934.0,95933.0,0.38372331]
[1733262020565,0.060415,95934.0,95933.0,0.38372331]
[1733262021666,0.060415,95934.0,95933.0,0.38272331]
[1733262021871,0.062415,95934.0,95933.0,0.38172331]
[1733262023169,0.423215,95934.0,95933.0,0.02092331]
[1733262023469,0.455515,95934.0,95933.0,0.02092331]
[1733262024181,0.455515,95934.0,95920.0,0.0026]
[1733262024182,0.052087,95928.0,95920.0,0.0026]
[1733262024373,0.052091,95921.0,95917.0,0.02083432]
[1733262024570,0.14524,95920.0,95909.0,0.032891]
[1733262024875,0.052097,95910.0,95909.0,0.030291]
[1733262025171,0.052097,95910.0,95909.0,0.02096361]
[1733262025371,0.20790985,95910.0,95909.0,0.02096361]
[1733262025566,0.052097,95910.0,95909.0,0.02096361]
[1733262027067,0.052097,95910.0,95909.0,0.02296361]
[1733262028177,0.052097,95910.0,95909.0,0.02496361]
[1733262028576,0.052095,95915.0,95914.0,0.052094]
[1733262028780,0.12457211,95921.0,95914.0,0.3608]
[1733262029072,0.052093,95920.0,95919.0,0.052092]
[1733262030566,0.053093,95920.0,95919.0,0.052092]
[1733262031868,0.056093,95920.0,95919.0,0.052092]
[1733262032781,0.055093,95920.0,95919.0,0.052092]
[1733262032979,0.053093,95920.0,95919.0,0.052092]
[1733262033170,0.052095,95915.0,95914.0,4e-05]
[1733262033370,0.412895,95915.0,95914.0,4e-05]
[1733262034378,0.412895,95915.0,95914.0,0.00104]
[1733262035765,0.56870785,95915.0,95914.0,0.00104]
[1733262035970,0.56853523,95915.0,95914.0,0.00104]
[1733262036276,0.412895,95915.0,95914.0,4e-05]
[1733262036979,0.56853851,95915.0,95914.0,4e-05]
[1733262037176,0.46357096,95915.0,95914.0,4e-05]
[1733262037379,0.4635709,95915.0,95914.0,4e-05]
[1733262038281,0.4719109,95915.0,95914.0,4e-05]
[1733262038483,0.47191227,95915.0,95914.0,4e-05]
[1733262040779,0.421235,95915.0,95914.0,4e-05]
[1733262040972,0.47191152,95915.0,95914.0,4e-05]
[1733262041284,0.421235,95915.0,95914.0,4e-05]
[1733262041980,0.57690552,95915.0,95914.0,4e-05]
[1733262042176,0.58524552,95915.0,95914.0,4e-05]
[1733262042888,0.58624552,95915.0,95914.0,4e-05]
[1733262043587,0.58631038,95915.0,95914.0,4e-05]
[1733262044079,0.430575,95915.0,95914.0,4e-05]
[1733262046083,0.069775,95915.0,95914.0,0.36084]
[1733262046279,0.069775,95915.0,95914.0,0.412936]
[1733262047376,0.068775,95915.0,95914.0,0.412936]
[1733262047579,0.068775,95915.0,95914.0,0.36084]
[1733262048372,0.068775,95915.0,95914.0,4e-05]
[1733262048982,0.099675,95915.0,95914.0,4e-05]
[1733262049177,0.15034886,95915.0,95914.0,4e-05]
[1733262049883,0.28774413,95915.0,95914.0,4e-05]
[1733262050074,0.15134886,95915.0,95914.0,4e-05]
[1733262050682,0.100675,95915.0,95914.0,4e-05]
[1733262050980,0.26046127,95915.0,95914.0,4e-05]
[1733262052178,0.2605757,95915.0,95914.0,4e-05]
[1733262052881,0.2665757,95915.0,95914.0,0.00104]
[1733262053189,0.2675757,95915.0,95914.0,0.00104]
[1733262053776,0.2695757,95915.0,95914.0,0.00104]
[1733262054083,0.109675,95915.0,95914.0,1e-06]
[1733262054286,0.68898317,95915.0,95914.0,1e-06]
[1733262054485,0.84888187,95915.0,95914.0,1e-06]
[1733262054786,0.6303757,95915.0,95914.0,1e-06]
[1733262054990,0.052098,95910.0,95909.0,8.8e-07]
[1733262055286,0.200778,95910.0,95909.0,8.8e-07]
[1733262055588,0.3606787,95910.0,95909.0,8.8e-07]
[1733262056283,0.3646787,95910.0,95909.0,8.8e-07]
[1733262056486,0.3726787,95910.0,95909.0,8.8e-07]
[1733262057182,0.43127494,95910.0,95909.0,8.8e-07]
[1733262057382,0.69546851,95910.0,95909.0,8.8e-07]
[1733262057587,0.60399963,95910.0,95909.0,8.8e-07]
[1733262058978,0.59599963,95910.0,95900.0,0.10007401]
[1733262059180,0.412903,95901.0,95900.0,0.10007401]
[1733262059491,0.7214837,95901.0,95900.0,0.10007401]
[1733262060189,0.7214837,95901.0,95900.0,0.04535301]
[1733262060387,0.7214837,95901.0,95900.0,1e-08]
[1733262060895,0.61226974,95901.0,95900.0,1e-08]
[1733262061687,0.61826974,95901.0,95900.0,1e-08]
[1733262063188,0.72784092,95901.0,95900.0,1e-08]
[1733262063490,0.61826974,95901.0,95900.0,1e-08]
[1733262063685,0.72779639,95901.0,95900.0,1e-08]
[1733262063884,0.61826974,95901.0,95900.0,1e-08]
[1733262064089,0.8054683,95901.0,95900.0,1e-08]
[1733262064289,0.61826974,95901.0,95900.0,1e-08]
[1733262064992,0.46958974,95901.0,95900.0,1e-08]
[1733262066689,0.65678043,95901.0,95900.0,1e-08]
[1733262066894,0.46958974,95901.0,95900.0,1e-08]
[1733262067089,0.65678619,95901.0,95900.0,1e-08]
[1733262067289,0.46958974,95901.0,95900.0,1e-08]
[1733262067494,0.65678619,95901.0,95900.0,1e-08]
[1733262067994,0.47792974,95901.0,95900.0,1e-08]
[1733262068592,0.66513113,95901.0,95900.0,1e-08]
[1733262068899,0.47792974,95901.0,95900.0,1e-08]
[1733262069092,0.66512644,95901.0,95900.0,1e-08]
[1733262069298,0.47792974,95901.0,95900.0,1e-08]
[1733262070593,0.66511651,95901.0,95900.0,1e-08]
[1733262070798,0.47792974,95901.0,95900.0,1e-08]
[1733262071200,0.5964586,95901.0,95900.0,1e-08]
[1733262072792,0.6047986,95901.0,95900.0,1e-08]
[1733262075094,0.2439986,95901.0,95900.0,1e-08]
[1733262078397,0.24415409,95901.0,95900.0,1e-08]
[1733262079400,0.12546405,95901.0,95900.0,1e-08]
[1733262080099,0.12546405,95901.0,95894.0,0.3608]
[1733262080301,0.12546405,95901.0,95887.0,1e-06]
[1733262080302,0.05211,95888.0,95887.0,1e-06]
[1733262080504,0.7304484,95888.0,95887.0,1e-06]
[1733262081897,0.7324484,95888.0,95887.0,1e-06]
[1733262082505,0.5864484,95888.0,95887.0,1e-06]
[1733262082804,0.5864484,95888.0,95887.0,0.02943397]
[1733262082805,0.46559105,95888.0,95887.0,0.02943397]
[1733262083003,0.46559105,95888.0,95887.0,1e-06]
[1733262083396,0.46559105,95888.0,95887.0,0.052111]
[1733262083597,0.46659105,95888.0,95887.0,0.052111]
[1733262083796,0.10579105,95888.0,95887.0,0.052111]
[1733262084002,0.29317862,95888.0,95887.0,1e-06]
[1733262084200,0.10579105,95888.0,95887.0,1e-06]
[1733262084399,0.10379105,95888.0,95887.0,1e-06]
[1733262084702,0.11113105,95888.0,95887.0,0.001001]
[1733262085702,0.11113376,95888.0,95887.0,0.001001]
[1733262085904,0.05902376,95888.0,95887.0,0.001001]
[1733262086597,0.11113376,95888.0,95887.0,0.053111]
[1733262087800,0.06045,95888.0,95887.0,0.053111]
[1733262088298,0.11113222,95888.0,95887.0,0.053111]
[1733262088499,0.21662095,95888.0,95887.0,0.053111]
[1733262088703,0.06045,95888.0,95887.0,0.053111]
[1733262089311,0.00834,95888.0,95887.0,0.413911]
[1733262090312,0.00834,95888.0,95887.0,0.412911]
[1733262090503,0.00834,95888.0,95887.0,0.413911]
[1733262092113,0.00834,95888.0,95887.0,0.414911]
[1733262092303,0.16450791,95888.0,95887.0,0.414911]
[1733262092501,0.00834,95888.0,95887.0,0.414911]
[1733262092906,0.16450791,95888.0,95887.0,0.414911]